bitfinex/quotes_ETHUSD_20240614
["timestamp","ask_amount","ask_price","bid_price","bid_amount"]
[1718392466274,0.0285021,3378.0,3377.8,2.96048]
[1718392466470,3.0,3378.3,3377.8,2.96048]
[1718392466674,0.02857741,3378.2,3377.8,2.96048]
[1718392467107,5.96008,3378.3,3377.8,2.96048]
[1718392467305,0.02853976,3378.1,3377.8,2.96048]
[1718392467709,2.95981,3378.6,3378.0,2.96033]
[1718392467896,3.0,3378.5,3378.0,2.96033]
[1718392468817,5.9599,3378.5,3377.9,2.96039]
[1718392469116,2.95998,3378.4,3377.9,2.96039]
[1718392469617,2.95973,3378.7,3378.0,2.96032]
[1718392470311,2.95964,3378.8,3378.1,2.9602]
[1718392470491,3.0,3378.7,3378.1,2.9602]
[1718392470810,2.95964,3378.8,3378.1,2.9602]
[1718392472580,2.95954,3378.9,3376.6,2.4666]
[1718392472581,6.90544514,3378.7,3376.6,2.4666]
[1718392472800,6.90544514,3378.7,3377.2,2.96095]
[1718392472801,2.96032,3378.1,3377.2,2.96095]
[1718392473005,2.96036,3378.0,3377.2,2.96095]
[1718392473515,2.96045,3377.9,3377.2,2.96095]
[1718392474211,2.96045,3377.9,3377.1,3.69203]
[1718392474212,2.96051,3377.8,3377.1,3.69209]
[1718392475118,2.96051,3377.8,3376.6,5.4281]
[1718392475119,2.96066,3377.7,3376.6,5.4281]
[1718392475325,2.96066,3377.7,3376.6,2.4666]
[1718392475326,2.96087,3377.4,3376.6,2.4666]
[1718392476097,2.96087,3377.4,3376.7,2.96144]
[1718392476284,2.96108,3377.2,3376.5,2.96158]
[1718392476488,2.96097,3377.3,3376.5,3.52493957]
[1718392476717,2.96097,3377.3,3376.6,2.96154]
[1718392477031,2.96105,3377.2,3376.5,3.52493957]
[1718392477710,2.96096,3377.3,3376.6,2.96153]
[1718392477915,0.0282056,3377.2,3376.6,2.96153]
[1718392478504,0.0282056,3377.2,3376.6,0.64864696]
[1718392478703,0.0282056,3377.2,3376.7,2.96145]
[1718392478899,0.02816793,3377.1,3376.9,2.96129]
[1718392479234,2.96076,3377.6,3376.9,2.96129]
[1718392479433,0.02813026,3377.0,3376.9,2.96129]
[1718392479642,5.29004,3377.8,3377.1,2.96109]
[1718392479802,3.0,3377.7,3377.1,2.96109]
[1718392481298,2.96034,3378.0,3377.3,2.96093]
[1718392481488,3.0,3377.9,3377.3,2.96093]
[1718392481706,3.0,3377.9,3377.1,2.96111]
[1718392482003,3.0,3377.9,3377.3,2.96093]
[1718392482206,3.0,3377.9,3377.1,2.96111]
[1718392482207,5.96042,3377.9,3377.2,2.96101]
[1718392482616,5.96042,3377.9,3377.3,2.96092]
[1718392482807,5.96042,3377.9,3377.2,2.96101]
[1718392483898,5.96042,3377.9,3376.6,0.64864696]
[1718392483899,3.0,3377.9,3376.6,0.64864696]
[1718392484105,3.0,3377.9,3376.5,3.02461315]
[1718392484106,2.96056,3377.8,3377.1,2.96109]
[1718392485537,3.0,3377.7,3377.1,2.96109]
[1718392486122,5.96061,3377.7,3377.1,2.96109]
[1718392486497,5.96061,3377.7,3377.0,2.96118]
[1718392488917,2.96068,3377.6,3377.0,2.96118]
[1718392489119,2.96083,3377.5,3376.7,3.47592098]
[1718392489449,2.96109,3377.2,3376.5,5.37226]
[1718392489741,2.96109,3377.2,3376.5,6.56323132]
[1718392492411,2.96109,3377.2,3376.6,2.96155]
[1718392492937,0.02818345,3377.1,3376.6,2.96155]
[1718392493302,0.02818345,3377.1,3376.7,2.96146]
[1718392493609,2.278,3377.5,3377.0,2.96118]
[1718392493836,5.96063,3377.7,3376.9,5.92258]
[1718392493837,0.02800238,3377.0,3376.9,5.92258]
[1718392494143,3.0,3377.7,3377.2,2.96102]
[1718392494408,2.147,3377.4,3376.5,0.61391315]
[1718392494543,2.96108,3377.2,3376.5,2.96163]
[1718392494919,2.2777,3377.3,3376.4,2.96173]
[1718392494920,5.23866,3377.3,3376.6,2.96154]
[1718392495317,0.00335079,3376.9,3376.6,2.96154]
[1718392496571,0.00335079,3376.9,3376.5,2.96162]
[1718392497057,0.00335079,3376.9,3376.5,2.96157]
[1718392498713,0.00335079,3376.9,3376.7,2.96146]
[1718392499057,0.00335079,3376.9,3376.8,8.37968677]
[1718392499816,0.00335079,3376.9,3376.8,12.77451191]
[1718392500251,0.00335079,3376.9,3376.8,9.75390514]
[1718392500559,0.00335079,3376.9,3376.8,4.39482514]
[1718392501576,0.00335079,3376.9,3376.4,2.96166]
[1718392501721,0.00335079,3376.9,3376.5,2.96164]
[1718392502054,2.96148,3376.7,3376.1,2.96198]
[1718392502229,2.96139,3376.8,3376.1,2.96198]
[1718392502551,0.00335079,3376.9,3376.2,2.9619]
[1718392502552,2.96465079,3376.9,3376.2,2.9619]
[1718392503415,2.96139,3376.8,3376.2,2.9619]
[1718392503830,2.96139,3376.8,3376.0,2.96208]
[1718392503831,2.96139,3376.8,3376.1,2.96198]
[1718392504228,0.00335079,3376.9,3376.2,2.96187]
[1718392504418,0.00335079,3376.9,3376.2,3.554255]
[1718392504739,0.00335079,3376.9,3376.1,2.96198]
[1718392504740,2.96145,3376.8,3376.1,2.96198]
[1718392504928,2.96145,3376.8,3375.7,3.0484839]
[1718392504929,2.96175,3376.4,3375.7,3.0484839]
[1718392505122,2.96175,3376.4,3375.8,2.96225]
[1718392505441,2.96174,3376.4,3375.7,0.0862139]
[1718392505656,2.96183,3376.3,3375.7,3.0485439]
[1718392506234,2.96226,3375.8,3375.7,0.0862139]
[1718392506420,5.92452,3375.8,3375.7,0.0862139]
[1718392507121,5.42416,3375.8,3375.7,0.0862139]
[1718392507323,18.47912514,3375.8,3375.7,0.0862139]
[1718392507593,8.88861,3375.1,3375.0,12.58116884]
[1718392507862,14.03561,3375.1,3375.0,12.58116884]
[1718392508669,18.43192514,3375.1,3375.0,12.58116884]
[1718392508964,18.98192514,3375.1,3375.0,12.58116884]
[1718392509639,12.43861,3375.1,3375.0,12.58116884]
[1718392509842,11.88861,3375.1,3375.0,12.58116884]
[1718392510167,8.92574,3375.1,3375.0,12.58116884]
[1718392510791,5.96287,3375.1,3375.0,12.58116884]
[1718392511061,2.96262,3375.4,3375.0,12.58116884]
[1718392511233,3.0,3375.3,3375.0,12.58116884]
[1718392511432,8.07213,3375.5,3375.0,12.58116884]
[1718392511660,2.96243,3375.7,3375.0,12.58116884]
[1718392512166,7.31,3375.9,3375.4,2.96259]
[1718392512328,25.25177,3376.3,3375.7,2.96233]
[1718392512329,27.31,3376.3,3375.7,2.96233]
[1718392512757,27.31,3376.3,3375.9,2.96211]
[1718392512953,27.31,3376.3,3375.1,2.96279]
[1718392512954,20.0,3376.3,3376.2,2.9619]
[1718392513165,20.0,3376.3,3376.2,5.9238]
[1718392513364,20.0,3376.3,3376.2,6.812372]
[1718392514446,20.0,3376.3,3376.2,14.16961714]
[1718392514773,20.0,3376.3,3376.2,11.20771714]
[1718392515070,20.0,3376.3,3376.2,14.16961714]
[1718392515936,20.0,3376.3,3376.2,9.774272]
[1718392516132,20.0,3376.3,3376.2,8.8857]
[1718392516346,20.0,3376.3,3376.2,2.9619]
[1718392516757,20.0,3376.3,3376.2,5.9238]
[1718392517847,20.0,3376.3,3376.2,2.9619]
[1718392518048,20.0,3376.3,3375.8,2.9622]
[1718392518257,20.0,3376.3,3375.4,2.96256]
[1718392518458,2.96207,3376.1,3375.3,2.96269]
[1718392518645,2.96207,3376.1,3375.2,2.96275]
[1718392518646,5.96209,3376.0,3375.2,2.96275]
[1718392518837,3.0,3376.0,3375.3,2.96269]
[1718392519235,3.0,3376.0,3375.0,12.58116884]
[1718392519536,2.96226,3375.8,3375.0,12.58116884]
[1718392519757,2.96211,3376.0,3375.0,12.58116884]
[1718392519937,2.9621,3376.0,3375.2,2.96278]
[1718392520256,20.0,3376.3,3375.9,2.96217]
[1718392520458,20.0,3376.3,3376.2,2.9619]
[1718392522545,20.0,3376.3,3376.2,8.8857]
[1718392525082,20.0,3376.3,3376.2,13.28104514]
[1718392525287,20.0,3376.3,3376.2,16.24294514]
[1718392525460,0.00335079,3376.9,3376.8,2.96138]
[1718392525666,0.00335079,3376.9,3376.8,13.27896514]
[1718392526185,7.31,3377.9,3377.8,5.921]
[1718392526345,7.31,3378.5,3378.0,2.9603]
[1718392526786,7.35850633,3378.5,3378.0,2.9603]
[1718392526993,7.35850633,3378.5,3377.9,2.9604]
[1718392527478,7.35850633,3378.5,3378.3,2.95998]
[1718392527479,0.04850633,3378.5,3378.3,2.95998]
[1718392527681,2.95946,3379.0,3378.3,2.95998]
[1718392527847,0.03553354,3378.4,3378.3,5.92004]
[1718392528184,2.95914,3379.4,3378.2,2.96008]
[1718392528185,2.95914,3379.4,3378.6,2.95977]
[1718392528393,2.95919,3379.3,3378.6,2.95974]
[1718392528553,2.99175243,3379.3,3378.6,2.95974]
[1718392529166,2.95928,3379.2,3378.5,2.95988]
[1718392529365,3.03016374,3379.1,3378.5,2.95984]
[1718392529663,3.0,3379.0,3378.5,2.95984]
[1718392529969,0.02805456,3379.0,3378.5,2.95984]
[1718392530168,2.95979,3378.7,3377.9,2.96041]
[1718392530490,2.95999,3378.4,3377.7,2.96051]
[1718392530706,2.9599,3378.5,3377.8,2.96049]
[1718392530860,0.03555953,3378.3,3377.8,2.96049]
[1718392531200,2.96039,3378.0,3376.9,2.2874]
[1718392531503,0.03909003,3378.2,3377.2,2.96094]
[1718392531788,0.03901366,3377.9,3377.6,2.96067]
[1718392532037,5.96019,3378.2,3377.4,2.96084]
[1718392532363,0.04309635,3378.1,3377.4,2.96084]
[1718392532688,5.96019,3378.2,3377.6,2.96067]
[1718392532855,3.0,3378.2,3377.7,2.96058]
[1718392533191,3.0,3378.3,3377.7,2.9605]
[1718392535454,22.95998,3378.4,3377.7,2.9605]
[1718392535455,20.0,3378.4,3377.7,2.9605]
[1718392535662,20.0,3378.4,3378.1,2.96016]
[1718392536589,20.0,3378.4,3377.8,2.96042]
[1718392536778,20.0,3378.4,3377.8,2.96043]
[1718392537007,20.03527692,3378.4,3377.8,2.96043]
[1718392537568,20.03527692,3378.4,3377.9,2.96039]
[1718392537860,20.0,3378.4,3377.9,2.96039]
[1718392538975,20.03880615,3378.4,3377.9,2.96039]
[1718392539578,20.03880615,3378.4,3378.0,2.96031]
[1718392540168,20.03880615,3378.4,3378.1,2.96022]
[1718392540369,20.03880615,3378.4,3378.3,5.92012]
[1718392540704,20.02791344,3378.4,3378.3,5.92012]
[1718392541866,20.02791344,3378.4,3378.3,8.88018]
[1718392542066,20.02791344,3378.4,3378.3,9.768198]
[1718392543477,20.0,3378.4,3378.3,8.88018]
[1718392546476,20.0,3378.4,3378.3,5.92012]
[1718392546690,20.0,3378.4,3378.1,2.96022]
[1718392546890,20.0,3378.4,3377.7,2.96055]
[1718392547098,20.0,3378.4,3377.8,2.9605]
[1718392547099,22.95998,3378.4,3377.8,2.9605]
[1718392547284,2.96013,3378.3,3377.6,2.96061]
[1718392547482,2.96013,3378.3,3377.7,2.96059]
[1718392547678,2.96013,3378.3,3377.6,2.96066]
[1718392547886,22.95998,3378.4,3377.4,2.275]
[1718392547887,2.96017,3378.2,3377.4,2.96084]
[1718392548197,20.0,3378.4,3377.6,2.96068]
[1718392548506,22.95999,3378.4,3377.6,2.96068]
[1718392549012,22.95999,3378.4,3377.8,2.96049]
[1718392549304,22.95999,3378.4,3377.7,2.96057]
[1718392549506,2.96008,3378.3,3377.7,2.96057]
[1718392550006,22.95999,3378.4,3377.8,2.9605]
[1718392550506,20.0,3378.4,3378.1,2.96019]
[1718392550904,20.0,3378.4,3377.8,2.9605]
[1718392551218,20.0,3378.4,3377.9,2.96039]
[1718392551415,20.0,3378.4,3378.0,2.96031]
[1718392552611,20.0,3378.4,3377.9,2.96041]
[1718392553608,20.0,3378.4,3378.0,2.96032]
[1718392553823,20.0,3378.4,3377.9,2.96034]
[1718392554030,20.0,3378.4,3377.9,2.9604]
[1718392554214,2.96009,3378.3,3377.7,2.96058]
[1718392554413,2.96024,3378.1,3377.5,2.96075]
[1718392555031,2.96024,3378.1,3377.1,2.96108]
[1718392555339,2.96059,3377.8,3377.1,2.96108]
[1718392555626,2.9605,3377.8,3377.1,2.96108]
[1718392556525,2.9605,3377.8,3377.2,2.96102]
[1718392557092,2.9606,3377.7,3377.1,2.9611]
[1718392558534,2.96051,3377.8,3377.1,2.9611]
[1718392558723,2.96051,3377.8,3377.2,2.96101]
[1718392559135,2.96017,3378.2,3377.5,2.9607]
[1718392559307,22.95998,3378.4,3377.4,2.96084]
[1718392559308,2.96024,3378.1,3377.4,2.96084]
[1718392560141,2.96006,3378.3,3377.2,2.96096]
[1718392560297,2.96016,3378.2,3377.3,2.96088]
[1718392560501,2.9605,3377.8,3377.0,2.96113]
[1718392560699,2.9605,3377.8,3376.9,2.96128]
[1718392561244,2.96033,3378.0,3376.9,2.96122]
[1718392561535,2.96053,3377.8,3377.2,2.96101]
[1718392562243,2.9606,3377.7,3377.1,2.96109]
[1718392562398,2.96063,3377.7,3376.6,2.96155]
[1718392562595,2.96101,3377.3,3376.6,2.96155]
[1718392562798,2.96101,3377.3,3376.4,5.43146]
[1718392562999,2.96113,3377.1,3376.3,2.96179]
[1718392563428,2.96123,3377.0,3376.3,2.96179]
[1718392564007,2.9616,3376.6,3375.7,0.61391315]
[1718392564207,2.96185,3376.3,3375.2,2.46461203]
[1718392564439,2.96185,3376.3,3375.3,5.08249906]
[1718392564650,2.96201,3376.1,3375.3,5.08249906]
[1718392565141,2.96201,3376.1,3375.4,2.9626]
[1718392565444,2.96175,3376.4,3375.7,2.96234]
[1718392565943,2.9619,3376.3,3375.3,2.11981906]
[1718392566108,2.96207,3376.1,3375.3,2.11981906]
[1718392566308,2.96209,3376.0,3375.3,2.11981906]
[1718392566551,2.96209,3376.0,3375.4,2.9626]
[1718392567550,2.96199,3376.1,3375.4,3.47083191]
[1718392567851,2.96192,3376.2,3375.5,2.96251]
[1718392568450,2.96168,3376.5,3375.8,2.96225]
[1718392569153,2.9619,3376.3,3375.4,0.50824191]
[1718392569332,2.96191,3376.2,3375.4,2.9626]
[1718392569531,2.96191,3376.2,3375.2,2.96273]
[1718392569532,2.96219,3375.9,3375.2,2.96273]
[1718392570410,2.96219,3375.9,3375.0,15.54412884]
[1718392570411,2.96219,3375.9,3375.3,2.96268]
[1718392571862,2.96219,3375.9,3375.1,2.96286]
[1718392572052,2.962,3376.1,3375.0,15.54403884]
[1718392572053,2.96237,3375.7,3375.0,15.54403884]
[1718392572371,2.96259,3375.5,3375.0,12.58116884]
[1718392572645,2.96245,3375.6,3375.0,12.58116884]
[1718392573419,10.272,3376.1,3375.3,2.96265]
[1718392573644,2.96215,3376.0,3375.3,2.96265]
[1718392574217,2.96222,3375.9,3375.2,2.96276]
[1718392574419,3.0,3375.8,3375.3,2.96266]
[1718392574622,3.0,3375.8,3375.4,2.96259]
[1718392574953,3.0,3375.8,3375.3,2.96268]
[1718392575153,3.0,3375.9,3375.3,2.96268]
[1718392575854,3.0,3375.9,3375.4,2.96261]
[1718392576359,3.0,3376.0,3375.4,2.96261]
[1718392576926,5.96208,3376.0,3375.3,2.96268]
[1718392577244,2.96217,3375.9,3375.3,2.96268]
[1718392577446,3.0,3375.8,3375.2,2.96276]
[1718392579636,3.0,3375.8,3375.3,2.96269]
[1718392579949,5.96217,3375.9,3375.3,2.96261]
[1718392580548,3.0,3375.9,3375.3,2.96261]
[1718392580739,3.0,3375.9,3375.4,2.96259]
[1718392580956,20.0,3376.0,3375.5,2.96246]
[1718392581350,20.0,3376.0,3375.4,2.96259]
[1718392581550,20.0,3376.0,3375.7,2.9623]
[1718392582466,20.0,3376.0,3375.8,2.96224]
[1718392584463,20.0,3376.0,3375.9,5.92434]
[1718392584660,20.0,3376.0,3375.9,10.31995514]
[1718392584898,20.0,3376.0,3375.9,14.61035765]
[1718392585478,20.0,3376.0,3375.9,51.98345765]
[1718392585857,20.0,3376.0,3375.9,16.98345765]
[1718392589082,20.0,3376.0,3375.9,22.94562765]
[1718392589284,17.5,3376.0,3375.9,23.49562765]
[1718392589604,17.5,3376.0,3375.9,24.1095408]
[1718392589800,17.5,3376.0,3375.9,23.49562765]
[1718392589972,15.30519953,3376.0,3375.9,23.49562765]
[1718392590382,7.31,3377.2,3377.1,8.88336]
[1718392590720,7.31,3378.0,3377.6,2.96068]
[1718392591009,2.96008,3378.3,3377.6,2.96068]
[1718392591714,5.4499,3378.2,3377.6,2.96068]
[1718392592384,2.4499,3378.2,3377.8,2.96043]
[1718392592596,20.0,3378.4,3377.8,2.96043]
[1718392592760,20.0,3378.4,3377.9,2.96041]
[1718392593582,20.0,3378.4,3378.1,2.9602]
[1718392593760,3.0,3378.3,3378.1,2.9602]
[1718392593958,20.0,3378.4,3378.1,2.9602]
[1718392594213,20.0,3378.4,3378.3,2.96006]
[1718392595808,20.0,3378.4,3378.3,5.92012]
[1718392596626,20.0,3378.4,3378.3,8.88018]
[1718392596901,20.0,3378.4,3378.3,9.768198]
[1718392597779,20.03243916,3378.4,3378.3,14.16170314]
[1718392597975,20.0,3378.4,3378.3,14.16170314]
[1718392598175,20.02773052,3378.4,3378.3,19.47746314]
[1718392598604,20.02773052,3378.4,3378.3,16.51740314]
[1718392600000,20.0,3378.4,3378.3,16.51740314]
[1718392600705,20.02647497,3378.4,3378.3,16.51740314]
[1718392601093,20.0,3378.4,3378.3,20.06740314]
[1718392602179,20.02808826,3378.4,3378.3,20.06740314]
[1718392602584,20.0,3378.4,3378.3,20.06740314]
[1718392603182,19.66893752,3378.4,3378.3,24.80446314]
[1718392603528,16.24550137,3378.4,3378.3,24.80446314]
[1718392603871,16.24550137,3378.4,3378.3,59.80446314]
[1718392606389,16.27326886,3378.4,3378.3,59.80446314]
[1718392606771,16.24550137,3378.4,3378.3,59.80446314]
[1718392608013,16.24550137,3378.4,3378.3,24.80446314]
[1718392608216,13.50402554,3378.4,3378.3,24.80446314]
[1718392609319,7.31,3380.0,3379.8,2.95873]
[1718392609475,2.2755,3380.2,3379.8,2.95873]
[1718392609880,0.02839426,3380.1,3379.8,2.95873]
[1718392610318,2.2755,3380.2,3379.8,2.95873]
[1718392610520,0.02851012,3380.1,3379.8,2.95873]
[1718392611024,2.2755,3380.2,3379.8,2.95873]
[1718392612420,2.2755,3380.2,3379.7,2.95881]
[1718392615984,2.95832,3380.3,3379.7,2.95881]
[1718392617628,2.9584,3380.2,3379.6,2.9589]
[1718392618224,2.9584,3380.2,3379.7,2.95883]
[1718392619215,2.9584,3380.2,3379.6,2.9589]
[1718392621431,2.95834,3380.3,3379.7,2.95882]
[1718392621584,2.95824,3380.4,3379.7,2.95882]
[1718392621788,2.95816,3380.5,3379.5,2.959]
[1718392622105,2.95816,3380.5,3379.9,2.95863]
[1718392623201,2.95823,3380.4,3379.8,2.95874]
[1718392625843,2.95817,3380.5,3379.9,2.9586]
[1718392628801,2.95824,3380.4,3379.8,2.95873]
[1718392629005,2.3016,3380.6,3379.6,0.2959]
[1718392629207,2.3016,3380.6,3379.1,2.95934]
[1718392629208,2.95882,3379.8,3379.1,2.95934]
[1718392629405,2.95882,3379.8,3379.2,2.95921]
[1718392629637,2.95882,3379.8,3379.1,4.39278514]
[1718392629842,2.95882,3379.8,3379.2,2.95926]
[1718392630547,2.95849,3380.1,3379.2,4.14412087]
[1718392630847,7.31,3380.4,3379.6,2.95892]
[1718392630848,10.26823,3380.4,3379.6,2.95892]
[1718392631011,10.26823,3380.4,3379.7,2.95877]
[1718392631217,7.31,3380.4,3379.8,2.95867]
[1718392631435,2.95814,3380.5,3379.8,2.95869]
[1718392631746,2.95823,3380.4,3379.8,2.95869]
[1718392632513,2.95832,3380.3,3379.7,2.95882]
[1718392633119,2.95849,3380.1,3379.4,2.95908]
[1718392633325,2.95889,3379.7,3379.2,0.58609384]
[1718392633556,2.4976,3379.8,3379.2,0.58609384]
[1718392633850,2.4976,3379.8,3378.9,2.95946]
[1718392633851,2.95893,3379.6,3378.9,2.95946]
[1718392634028,2.95904,3379.5,3378.9,2.95946]
[1718392634356,2.95893,3379.6,3379.0,2.95944]
[1718392636145,2.95942,3379.1,3378.6,0.92086972]
[1718392636317,2.9593,3379.2,3378.6,2.95977]
[1718392637546,2.95921,3379.3,3378.7,2.9597]
[1718392637748,5.45636,3379.8,3378.8,1.43344514]
[1718392637951,5.45636,3379.8,3379.1,2.95936]
[1718392638493,2.95893,3379.6,3379.0,2.95944]
[1718392638643,2.95893,3379.6,3378.8,2.9596]
[1718392639245,2.95912,3379.4,3378.6,0.92086972]
[1718392639450,5.45639,3379.8,3378.7,2.9597]
[1718392639451,2.95919,3379.3,3378.7,2.9597]
[1718392639885,2.95896,3379.6,3378.7,2.9597]
[1718392639886,2.95894,3379.6,3379.0,2.95945]
[1718392640049,7.31,3380.3,3379.4,2.95909]
[1718392640050,2.95858,3380.0,3379.4,2.95909]
[1718392640961,2.95841,3380.2,3379.2,3.88012972]
[1718392641165,2.3878,3380.3,3379.7,2.95883]
[1718392641344,2.3878,3380.3,3379.8,2.95868]
[1718392641543,2.95815,3380.5,3379.8,2.95868]
[1718392641983,2.95815,3380.5,3379.9,2.95866]
[1718392642692,5.44257,3380.7,3380.0,2.95855]
[1718392642900,9.7946,3381.1,3380.3,2.9583]
[1718392643181,12.75229,3381.1,3380.5,2.95807]
[1718392643353,5.44229,3381.1,3380.5,2.95807]
[1718392644081,2.9577,3381.0,3380.1,3.57800917]
[1718392644291,5.44229,3381.1,3380.1,2.95848]
[1718392645481,2.95791,3380.8,3379.7,3.57835917]
[1718392645676,2.95822,3380.5,3379.8,2.95872]
[1718392645883,2.95822,3380.5,3379.7,2.95882]
[1718392646140,2.95832,3380.3,3379.7,2.95882]
[1718392646627,2.95892,3379.7,3379.0,3.57895917]
[1718392646916,2.95892,3379.7,3379.0,5.3082883]
[1718392647314,2.95902,3379.5,3378.9,2.95953]
[1718392647489,2.95902,3379.5,3378.9,2.95954]
[1718392647490,2.95908,3379.5,3378.9,2.95954]
[1718392647692,2.95851,3380.1,3379.4,2.95903]
[1718392648617,2.95858,3380.0,3379.4,2.95903]
[1718392649719,2.95851,3380.1,3379.5,2.95901]
[1718392650317,2.95858,3380.0,3379.1,2.95928]
[1718392650535,11.8876,3380.3,3378.8,0.61952917]
[1718392650827,2.95894,3379.6,3378.5,2.2569]
[1718392651044,2.95928,3379.2,3378.6,2.95979]
[1718392651185,2.9592,3379.3,3378.7,2.95971]
[1718392651485,2.9592,3379.3,3378.7,2.9597]
[1718392652849,2.95902,3379.5,3378.6,2.95979]
[1718392653023,2.95912,3379.4,3378.8,2.95962]
[1718392654274,2.95903,3379.5,3378.9,2.95953]
[1718392654764,2.95911,3379.4,3378.8,2.95961]
[1718392655061,2.95893,3379.6,3378.8,2.95961]
[1718392655221,2.95909,3379.5,3378.9,2.9595]
[1718392655423,2.9591,3379.4,3378.8,2.95961]
[1718392655675,2.95919,3379.3,3378.7,2.95969]
[1718392656328,2.95919,3379.3,3378.8,2.95962]
[1718392656534,2.95912,3379.4,3378.9,2.95953]
[1718392657056,2.95912,3379.4,3378.8,2.95961]
[1718392657441,2.95919,3379.3,3378.8,2.95961]
[1718392658529,2.95919,3379.3,3378.7,2.9597]
[1718392660657,2.95912,3379.4,3378.8,2.95963]
[1718392661632,2.9592,3379.3,3378.7,2.9597]
[1718392663931,2.95928,3379.2,3378.7,2.9597]
[1718392664181,2.95952,3379.0,3378.4,2.95996]
[1718392664353,2.95958,3378.9,3378.3,3.848078]
[1718392665233,2.95958,3378.9,3378.2,2.96014]
[1718392665234,2.95964,3378.8,3378.2,2.96014]
[1718392666932,5.10732,3379.2,3377.7,2.96054]
[1718392667138,5.10732,3379.2,3377.3,0.92086972]
[1718392667139,2.96022,3378.2,3377.6,2.96066]
[1718392667365,2.96025,3378.1,3377.4,2.96083]
[1718392667569,2.96025,3378.1,3377.0,5.4312]
[1718392667570,2.96024,3378.1,3377.5,0.296083]
[1718392667884,2.96024,3378.1,3377.5,3.256843]
[1718392669090,2.96017,3378.2,3377.6,2.96067]
[1718392669286,2.96017,3378.2,3377.6,3.5824293]
[1718392670112,2.96006,3378.3,3377.6,3.5824293]
[1718392670113,2.96007,3378.3,3377.7,2.96057]
[1718392670327,5.36341,3378.6,3377.8,2.96041]
[1718392670471,5.36341,3378.6,3377.8,3.64430323]
[1718392670668,2.95996,3378.5,3377.9,2.96035]
[1718392672734,10.26964,3378.8,3378.2,2.96008]
[1718392673033,10.26964,3378.8,3378.4,2.95996]
[1718392673034,3.0,3378.7,3378.4,2.95996]
[1718392673313,2.95929,3379.2,3378.6,2.95979]
[1718392673719,3.0,3379.1,3378.6,2.95979]
[1718392673879,2.95895,3379.6,3378.4,0.592001]
[1718392674080,2.95895,3379.6,3379.0,2.95938]
[1718392674279,2.95903,3379.5,3378.9,2.95952]
[1718392674618,5.10695,3379.6,3378.7,2.95971]
[1718392674999,2.95927,3379.3,3378.7,2.95971]
[1718392675421,2.95927,3379.3,3378.7,2.95964]
[1718392675788,2.95943,3379.1,3378.4,2.95989]
[1718392676797,2.95949,3379.0,3378.4,2.95989]
[1718392676993,2.95954,3378.9,3378.4,2.95989]
[1718392678485,2.95966,3378.8,3378.0,2.96032]
[1718392678727,2.95966,3378.8,3378.1,2.96023]
[1718392678728,2.95973,3378.7,3378.1,2.96023]
[1718392678927,2.95964,3378.8,3378.2,2.96015]
[1718392679810,2.95964,3378.8,3378.3,2.96006]
[1718392680401,2.95955,3378.9,3378.3,2.96006]
[1718392680627,2.95963,3378.8,3378.2,2.96013]
[1718392680943,2.95947,3379.0,3378.4,2.9599]
[1718392680944,2.95946,3379.0,3378.4,2.9599]
[1718392681223,2.95928,3379.2,3378.6,2.95979]
[1718392681527,2.95912,3379.4,3378.9,2.95947]
[1718392681728,3.0,3379.3,3378.9,2.95947]
[1718392682431,5.95919,3379.3,3378.6,2.95979]
[1718392683910,5.95919,3379.3,3378.8,2.95962]
[1718392684349,4.4964,3379.6,3378.5,2.95987]
[1718392684350,2.95911,3379.4,3378.9,2.95953]
[1718392685021,2.95911,3379.4,3378.8,2.95961]
[1718392686451,2.95947,3379.0,3378.4,2.95992]
[1718392686750,2.95963,3378.8,3378.2,2.96013]
[1718392687319,2.95956,3378.9,3378.3,2.96004]
[1718392687927,2.95956,3378.9,3378.4,2.95996]
[1718392688338,2.95922,3379.3,3378.4,2.95996]
[1718392688550,2.95922,3379.3,3378.0,2.96028]
[1718392688551,2.95928,3379.2,3378.5,2.95988]
[1718392688924,2.95928,3379.2,3378.6,2.95975]
[1718392692238,2.95928,3379.2,3378.7,2.9597]
[1718392693373,5.95885,3379.7,3379.0,2.95937]
[1718392693547,2.95885,3379.7,3379.0,2.95937]
[1718392693746,2.95885,3379.7,3379.1,2.95935]
[1718392693944,2.95893,3379.6,3379.1,2.95935]
[1718392694346,2.95893,3379.6,3378.8,2.95954]
[1718392694739,2.95893,3379.6,3379.0,2.95944]
[1718392694942,2.95884,3379.7,3379.1,2.9593]
[1718392694943,2.95885,3379.7,3379.1,2.9593]
[1718392698485,7.47062,3380.0,3379.1,2.9593]
[1718392698685,5.95869,3379.9,3379.3,2.95918]
[1718392698902,7.60943111,3380.3,3379.4,2.95909]
[1718392698903,7.31,3380.3,3379.4,2.95909]
[1718392699080,10.26833,3380.3,3379.7,2.95878]
[1718392699383,2.95833,3380.3,3379.7,2.95878]
[1718392702457,5.10609,3380.6,3380.0,2.9585]
[1718392702458,2.95807,3380.6,3380.0,2.9585]
[1718392702596,3.0,3380.5,3380.0,2.9585]
[1718392702932,2.95799,3380.7,3380.0,2.95856]
[1718392703305,2.3873,3380.9,3380.0,0.591714]
[1718392703519,2.95757,3381.2,3380.4,2.95821]
[1718392703707,4.5833,3381.3,3380.5,2.95814]
[1718392704029,4.5833,3381.3,3380.2,2.95832]
[1718392704030,7.54074,3381.3,3380.2,2.95832]
[1718392704391,2.95777,3381.0,3380.3,2.95829]